[Event "Titled Tuesday Blitz July 13 2021"]
[White "Barp, Alberto"]
[Black "Vasquez Schroeder, Rodrigo"]
[WhiteFideId "872555"]
[BlackFideId "3400042"]
[WhiteElo "2229"]
[BlackElo "2572"]
[Result "0-1"]
[Round "06"]
[TimeControl "180+1"]
[Date "2021.07.13"]
[WhiteClock "0:00:55"]
[BlackClock "0:01:51"]

1. d4 {[%clk 0:03:00]}  Nf6 {[%clk 0:02:59]} 2. c4 {[%clk 0:02:53]}  e6 {[%clk 0:02:59]} 3. Nf3 {[%clk 0:02:51]}  c5 {[%clk 0:02:59]} 4. d5 {[%clk 0:02:43]}  d6 {[%clk 0:02:59]} 5. Nc3 {[%clk 0:02:42]}  exd5 {[%clk 0:02:59]} 6. cxd5 {[%clk 0:02:43]}  g6 {[%clk 0:02:59]} 7. h3 {[%clk 0:02:38]}  Bg7 {[%clk 0:02:51]} 8. e4 {[%clk 0:02:38]}  a6 {[%clk 0:02:51]} 9. a4 {[%clk 0:02:37]}  Nbd7 {[%clk 0:02:50]} 10. Bd3 {[%clk 0:02:38]}  Nh5 {[%clk 0:02:50]} 11. Bg5 {[%clk 0:02:38]}  Bf6 {[%clk 0:02:41]} 12. Be3 {[%clk 0:02:37]}  O-O {[%clk 0:02:38]} 13. O-O {[%clk 0:02:37]}  Re8 {[%clk 0:02:37]} 14. Qd2 {[%clk 0:02:27]}  Qa5 {[%clk 0:02:32]} 15. g4 {[%clk 0:02:12]}  Ng7 {[%clk 0:02:31]} 16. g5 {[%clk 0:02:04]}  Be7 {[%clk 0:02:29]} 17. Bf4 {[%clk 0:01:58]}  Nh5 {[%clk 0:02:23]} 18. Bh2 {[%clk 0:01:55]}  Qd8 {[%clk 0:02:23]} 19. Kg2 {[%clk 0:01:48]}  Ne5 {[%clk 0:02:14]} 20. Nxe5 {[%clk 0:01:28]}  dxe5 {[%clk 0:02:13]} 21. h4 {[%clk 0:01:29]}  Bd6 {[%clk 0:02:05]} 22. Ne2 {[%clk 0:01:04]}  Bd7 {[%clk 0:01:56]} 23. a5 {[%clk 0:01:02]}  c4 {[%clk 0:01:52]} 24. Bxc4 {[%clk 0:00:59]}  Qc8 {[%clk 0:01:52]} 25. Rfc1 {[%clk 0:00:57]}  Bh3+ {[%clk 0:01:52]} 26. Kh1 {[%clk 0:00:55]}  Qg4 {[%clk 0:01:51]} 0-1


[Site "https://www.chess.com"]

[Event "Titled Tuesday Blitz July 13 2021"]
[White "Begunov, Konstantin"]
[Black "Piesik, Piotr"]
[WhiteFideId "4118510"]
[BlackFideId "1136194"]
[WhiteElo "2262"]
[BlackElo "2354"]
[Result "1-0"]
[Round "06"]
[TimeControl "180+1"]
[Date "2021.07.13"]
[WhiteClock "0:00:33"]
[BlackClock "0:00:36"]

1. d4 {[%clk 0:02:48]}  c5 {[%clk 0:02:58]} 2. dxc5 {[%clk 0:02:48]}  e6 {[%clk 0:02:58]} 3. Nc3 {[%clk 0:02:48]}  Bxc5 {[%clk 0:02:57]} 4. Ne4 {[%clk 0:02:49]}  Nf6 {[%clk 0:02:57]} 5. Nxc5 {[%clk 0:02:44]}  Qa5+ {[%clk 0:02:57]} 6. c3 {[%clk 0:02:45]}  Qxc5 {[%clk 0:02:58]} 7. Nf3 {[%clk 0:02:40]}  d5 {[%clk 0:02:57]} 8. Bg5 {[%clk 0:02:39]}  Ne4 {[%clk 0:02:55]} 9. Bh4 {[%clk 0:02:39]}  Nc6 {[%clk 0:02:50]} 10. e3 {[%clk 0:02:40]}  O-O {[%clk 0:02:49]} 11. Bd3 {[%clk 0:02:39]}  b5 {[%clk 0:02:45]} 12. Nd4 {[%clk 0:02:33]}  b4 {[%clk 0:02:40]} 13. Nxc6 {[%clk 0:02:25]}  Qxc6 {[%clk 0:02:38]} 14. cxb4 {[%clk 0:02:22]}  Ba6 {[%clk 0:02:35]} 15. O-O {[%clk 0:02:09]}  Bxd3 {[%clk 0:02:34]} 16. Qxd3 {[%clk 0:02:10]}  Rfc8 {[%clk 0:02:34]} 17. Rfd1 {[%clk 0:01:58]}  Qc2 {[%clk 0:02:20]} 18. Rab1 {[%clk 0:01:35]}  Qxd3 {[%clk 0:02:16]} 19. Rxd3 {[%clk 0:01:34]}  Rc2 {[%clk 0:02:13]} 20. f3 {[%clk 0:01:29]}  Nd2 {[%clk 0:02:07]} 21. Rd1 {[%clk 0:01:27]}  Nc4 {[%clk 0:02:07]} 22. b3 {[%clk 0:01:24]}  Ne5 {[%clk 0:01:41]} 23. R3d2 {[%clk 0:01:20]}  Rac8 {[%clk 0:01:36]} 24. Bg3 {[%clk 0:01:15]}  Rxd2 {[%clk 0:01:36]} 25. Rxd2 {[%clk 0:01:15]}  Rc1+ {[%clk 0:01:28]} 26. Kf2 {[%clk 0:01:13]}  Nc6 {[%clk 0:01:28]} 27. Bd6 {[%clk 0:01:03]}  a6 {[%clk 0:01:27]} 28. a4 {[%clk 0:00:58]}  f6 {[%clk 0:01:21]} 29. b5 {[%clk 0:00:57]}  axb5 {[%clk 0:01:21]} 30. axb5 {[%clk 0:00:58]}  Na5 {[%clk 0:01:20]} 31. b6 {[%clk 0:00:38]}  Nb7 {[%clk 0:01:13]} 32. Bc7 {[%clk 0:00:35]}  Rb1 {[%clk 0:01:03]} 33. Ra2 {[%clk 0:00:34]}  Rxb3 {[%clk 0:00:58]} 34. Ra8+ {[%clk 0:00:34]}  Kf7 {[%clk 0:00:58]} 35. Ra7 {[%clk 0:00:34]}  Rb2+ {[%clk 0:00:38]} 36. Kg3 {[%clk 0:00:34]}  Nc5 {[%clk 0:00:36]} 37. Be5+ {[%clk 0:00:33]} 1-0


[Site "https://www.chess.com"]

[Event "Titled Tuesday Blitz July 13 2021"]
[White "Boidiya, Sidi"]
[Black "Maghsoodloo, Parham"]
[WhiteFideId "19600100"]
[BlackFideId "12539929"]
[WhiteElo "2113"]
[BlackElo "2601"]
[Result "1-0"]
[Round "06"]
[TimeControl "180+1"]
[Date "2021.07.13"]
[WhiteClock "0:01:45"]
[BlackClock "0:01:52"]

1. e4 {[%clk 0:03:00]}  c5 {[%clk 0:02:58]} 2. Nc3 {[%clk 0:03:00]}  e6 {[%clk 0:02:58]} 3. g3 {[%clk 0:03:00]}  a6 {[%clk 0:02:58]} 4. Bg2 {[%clk 0:03:00]}  h5 {[%clk 0:02:58]} 5. h3 {[%clk 0:03:00]}  Nc6 {[%clk 0:02:59]} 6. d3 {[%clk 0:03:00]}  g5 {[%clk 0:02:59]} 7. Be3 {[%clk 0:03:00]}  d6 {[%clk 0:02:50]} 8. Qd2 {[%clk 0:02:59]}  Be7 {[%clk 0:02:44]} 9. Nf3 {[%clk 0:02:57]}  f6 {[%clk 0:02:43]} 10. O-O-O {[%clk 0:02:55]}  Bd7 {[%clk 0:02:43]} 11. d4 {[%clk 0:02:54]}  cxd4 {[%clk 0:02:42]} 12. Nxd4 {[%clk 0:02:55]}  Qc7 {[%clk 0:02:42]} 13. f4 {[%clk 0:02:45]}  gxf4 {[%clk 0:02:41]} 14. gxf4 {[%clk 0:02:46]}  Nxd4 {[%clk 0:02:33]} 15. Bxd4 {[%clk 0:02:44]}  Bc6 {[%clk 0:02:34]} 16. Rhe1 {[%clk 0:02:40]}  b5 {[%clk 0:02:23]} 17. Kb1 {[%clk 0:02:36]}  b4 {[%clk 0:02:22]} 18. Ne2 {[%clk 0:02:35]}  a5 {[%clk 0:02:22]} 19. Nc1 {[%clk 0:02:33]}  Rb8 {[%clk 0:02:17]} 20. e5 {[%clk 0:02:31]}  dxe5 {[%clk 0:02:17]} 21. fxe5 {[%clk 0:02:32]}  f5 {[%clk 0:02:17]} 22. Nd3 {[%clk 0:02:23]}  Kf7 {[%clk 0:02:13]} 23. Nf4 {[%clk 0:02:18]}  Rh6 {[%clk 0:02:10]} 24. Qe2 {[%clk 0:02:06]}  Bg5 {[%clk 0:02:05]} 25. Nxe6 {[%clk 0:01:50]}  Kxe6 {[%clk 0:01:56]} 26. Qc4+ {[%clk 0:01:49]}  Ke7 {[%clk 0:01:52]} 27. Bc5+ {[%clk 0:01:45]} 1-0


[Site "https://www.chess.com"]

[Event "Titled Tuesday Blitz July 13 2021"]
[White "Bortnyk, Olexandr"]
[Black "Bernadskiy, Vitaliy"]
[WhiteFideId "14120828"]
[BlackFideId "14100371"]
[WhiteElo "2723"]
[BlackElo "2510"]
[Result "0-1"]
[Round "06"]
[TimeControl "180+1"]
[Date "2021.07.13"]
[WhiteClock "0:00:02"]
[BlackClock "0:01:58"]

1. d4 {[%clk 0:03:00]}  d5 {[%clk 0:02:57]} 2. Bf4 {[%clk 0:03:00]}  c5 {[%clk 0:02:56]} 3. e3 {[%clk 0:02:54]}  Nc6 {[%clk 0:02:56]} 4. c3 {[%clk 0:02:52]}  Bf5 {[%clk 0:02:51]} 5. Nd2 {[%clk 0:02:52]}  e6 {[%clk 0:02:50]} 6. Ngf3 {[%clk 0:02:51]}  Bd6 {[%clk 0:02:49]} 7. Bg3 {[%clk 0:02:44]}  Nge7 {[%clk 0:02:49]} 8. Be2 {[%clk 0:02:38]}  O-O {[%clk 0:02:48]} 9. Nf1 {[%clk 0:01:59]}  Bg6 {[%clk 0:02:38]} 10. Bxd6 {[%clk 0:01:55]}  Qxd6 {[%clk 0:02:39]} 11. Ng3 {[%clk 0:01:55]}  Rac8 {[%clk 0:02:30]} 12. O-O {[%clk 0:01:44]}  Nf5 {[%clk 0:02:30]} 13. Nxf5 {[%clk 0:01:28]}  Bxf5 {[%clk 0:02:31]} 14. Qb3 {[%clk 0:01:28]}  c4 {[%clk 0:02:28]} 15. Qd1 {[%clk 0:01:21]}  b5 {[%clk 0:02:27]} 16. a3 {[%clk 0:01:13]}  a5 {[%clk 0:02:27]} 17. Nd2 {[%clk 0:01:14]}  b4 {[%clk 0:02:26]} 18. axb4 {[%clk 0:01:15]}  axb4 {[%clk 0:02:26]} 19. e4 {[%clk 0:01:15]}  Bxe4 {[%clk 0:02:25]} 20. Nxe4 {[%clk 0:01:14]}  dxe4 {[%clk 0:02:26]} 21. Bxc4 {[%clk 0:01:09]}  bxc3 {[%clk 0:02:26]} 22. bxc3 {[%clk 0:01:09]}  Nxd4 {[%clk 0:02:23]} 23. Bxe6 {[%clk 0:00:23]}  Rxc3 {[%clk 0:02:22]} 24. Bh3 {[%clk 0:00:19]}  Rxh3 {[%clk 0:02:19]} 25. f4 {[%clk 0:00:12]}  Rd3 {[%clk 0:02:16]} 26. Qh5 {[%clk 0:00:11]}  g6 {[%clk 0:02:14]} 27. Qg4 {[%clk 0:00:07]}  Nf5 {[%clk 0:02:12]} 28. Rfe1 {[%clk 0:00:06]}  Qd4+ {[%clk 0:02:09]} 29. Kh1 {[%clk 0:00:06]}  Rd8 {[%clk 0:02:10]} 30. Rac1 {[%clk 0:00:05]}  h5 {[%clk 0:02:09]} 31. Qg5 {[%clk 0:00:06]}  e3 {[%clk 0:02:06]} 32. h3 {[%clk 0:00:03]}  Rd2 {[%clk 0:02:04]} 33. Rc7 {[%clk 0:00:02]}  Rd1 {[%clk 0:01:59]} 34. Rxd1 {[%clk 0:00:01]}  Qxd1+ {[%clk 0:02:00]} 35. Kh2 {[%clk 0:00:02]}  Qd6 {[%clk 0:01:58]} 0-1


[Site "https://www.chess.com"]

[Event "Titled Tuesday Blitz July 13 2021"]
[White "Cunha, Lucas Aguiar"]
[Black "Navalgund, Niranjan"]
[WhiteFideId "2125404"]
[BlackFideId "5030854"]
[WhiteElo "2361"]
[BlackElo "2290"]
[Result "1-0"]
[Round "06"]
[TimeControl "180+1"]
[Date "2021.07.13"]
[WhiteClock "0:02:13"]
[BlackClock "0:02:06"]

1. e4 {[%clk 0:02:59]}  e5 {[%clk 0:02:55]} 2. Nf3 {[%clk 0:02:59]}  Nc6 {[%clk 0:02:44]} 3. Nc3 {[%clk 0:02:59]}  Nf6 {[%clk 0:02:43]} 4. Bb5 {[%clk 0:02:59]}  Nd4 {[%clk 0:02:43]} 5. Ba4 {[%clk 0:02:59]}  Bc5 {[%clk 0:02:40]} 6. Nxe5 {[%clk 0:02:59]}  O-O {[%clk 0:02:39]} 7. Nd3 {[%clk 0:02:57]}  Bb6 {[%clk 0:02:38]} 8. e5 {[%clk 0:02:58]}  Re8 {[%clk 0:02:36]} 9. O-O {[%clk 0:02:57]}  d6 {[%clk 0:02:25]} 10. exf6 {[%clk 0:02:54]}  Qxf6 {[%clk 0:02:26]} 11. Bxe8 {[%clk 0:02:53]}  Qg6 {[%clk 0:02:25]} 12. Nf4 {[%clk 0:02:46]}  Qh6 {[%clk 0:02:20]} 13. d3 {[%clk 0:02:44]}  Bf5 {[%clk 0:02:20]} 14. Ba4 {[%clk 0:02:23]}  g5 {[%clk 0:02:18]} 15. Nfd5 {[%clk 0:02:20]}  Re8 {[%clk 0:02:13]} 16. Be3 {[%clk 0:02:16]}  Ne6 {[%clk 0:02:06]} 17. Bxe8 {[%clk 0:02:13]} 1-0


[Site "https://www.chess.com"]

[Event "Titled Tuesday Blitz July 13 2021"]
[White "De Silva, L M S T"]
[Black "Elgersma, Onno"]
[WhiteFideId "9953698"]
[BlackFideId "1053531"]
[WhiteElo "1621"]
[BlackElo "2452"]
[Result "1-0"]
[Round "06"]
[TimeControl "180+1"]
[Date "2021.07.13"]
[WhiteClock "0:01:51"]
[BlackClock "0:01:44"]

1. Nf3 {[%clk 0:03:00]}  d5 {[%clk 0:02:59]} 2. b3 {[%clk 0:03:00]}  Nf6 {[%clk 0:02:58]} 3. Bb2 {[%clk 0:03:01]}  c5 {[%clk 0:02:58]} 4. e3 {[%clk 0:03:02]}  Nc6 {[%clk 0:02:59]} 5. c4 {[%clk 0:03:01]}  e6 {[%clk 0:02:59]} 6. g3 {[%clk 0:03:00]}  d4 {[%clk 0:02:58]} 7. Bg2 {[%clk 0:03:00]}  Be7 {[%clk 0:02:57]} 8. O-O {[%clk 0:03:00]}  O-O {[%clk 0:02:50]} 9. exd4 {[%clk 0:03:00]}  cxd4 {[%clk 0:02:49]} 10. Re1 {[%clk 0:03:00]}  Re8 {[%clk 0:02:48]} 11. d3 {[%clk 0:02:56]}  Bf8 {[%clk 0:02:40]} 12. Ne5 {[%clk 0:02:50]}  Nxe5 {[%clk 0:02:37]} 13. Rxe5 {[%clk 0:02:51]}  Bd6 {[%clk 0:02:36]} 14. Bxd4 {[%clk 0:02:30]}  Bxe5 {[%clk 0:02:32]} 15. Bxe5 {[%clk 0:02:31]}  Nd7 {[%clk 0:02:29]} 16. Bb2 {[%clk 0:02:28]}  e5 {[%clk 0:02:29]} 17. Nc3 {[%clk 0:02:28]}  Nf6 {[%clk 0:02:24]} 18. Qd2 {[%clk 0:02:12]}  e4 {[%clk 0:02:04]} 19. d4 {[%clk 0:02:09]}  Bf5 {[%clk 0:02:03]} 20. d5 {[%clk 0:02:08]}  Qd7 {[%clk 0:01:58]} 21. Nd1 {[%clk 0:02:05]}  Ng4 {[%clk 0:01:54]} 22. h3 {[%clk 0:02:04]}  Ne5 {[%clk 0:01:52]} 23. Bxe5 {[%clk 0:02:01]}  Rxe5 {[%clk 0:01:51]} 24. g4 {[%clk 0:02:01]}  Bg6 {[%clk 0:01:50]} 25. Ne3 {[%clk 0:02:01]}  h5 {[%clk 0:01:50]} 26. Qd4 {[%clk 0:01:53]}  f6 {[%clk 0:01:46]} 27. c5 {[%clk 0:01:52]}  hxg4 {[%clk 0:01:44]} 28. hxg4 {[%clk 0:01:52]}  Rf5 {[%clk 0:01:44]} 29. gxf5 {[%clk 0:01:51]} 1-0


[Site "https://www.chess.com"]

[Event "Titled Tuesday Blitz July 13 2021"]
[White "Djordjevic, Vuk"]
[Black "Cunjalo, Faris"]
[WhiteFideId "902098"]
[BlackFideId "14410710"]
[WhiteElo "2463"]
[BlackElo "2234"]
[Result "0-1"]
[Round "06"]
[TimeControl "180+1"]
[Date "2021.07.13"]
[WhiteClock "0:00:01"]
[BlackClock "0:00:09"]

1. d4 {[%clk 0:03:00]}  e6 {[%clk 0:02:56]} 2. Nf3 {[%clk 0:03:00]}  b6 {[%clk 0:02:56]} 3. e4 {[%clk 0:02:59]}  Bb7 {[%clk 0:02:56]} 4. Nc3 {[%clk 0:02:58]}  d6 {[%clk 0:02:53]} 5. Be2 {[%clk 0:02:58]}  Ne7 {[%clk 0:02:53]} 6. Be3 {[%clk 0:02:57]}  g6 {[%clk 0:02:53]} 7. O-O {[%clk 0:02:58]}  Bg7 {[%clk 0:02:53]} 8. a4 {[%clk 0:02:57]}  a6 {[%clk 0:02:53]} 9. Nd2 {[%clk 0:02:56]}  Nd7 {[%clk 0:02:51]} 10. f4 {[%clk 0:02:56]}  O-O {[%clk 0:02:44]} 11. Bf3 {[%clk 0:02:55]}  c5 {[%clk 0:02:36]} 12. Nb3 {[%clk 0:02:52]}  Qc7 {[%clk 0:02:24]} 13. Qe2 {[%clk 0:02:46]}  d5 {[%clk 0:02:18]} 14. Rfd1 {[%clk 0:02:17]}  dxe4 {[%clk 0:02:15]} 15. Nxe4 {[%clk 0:02:16]}  cxd4 {[%clk 0:01:47]} 16. Bxd4 {[%clk 0:02:05]}  e5 {[%clk 0:01:35]} 17. fxe5 {[%clk 0:01:51]}  Nxe5 {[%clk 0:01:36]} 18. Bxe5 {[%clk 0:01:31]}  Bxe5 {[%clk 0:01:34]} 19. Kh1 {[%clk 0:01:17]}  Bxb2 {[%clk 0:01:20]} 20. Rab1 {[%clk 0:01:17]}  Be5 {[%clk 0:01:20]} 21. Nbc5 {[%clk 0:01:17]}  Bc6 {[%clk 0:01:18]} 22. Nd3 {[%clk 0:00:56]}  Bg7 {[%clk 0:01:13]} 23. Rb4 {[%clk 0:00:50]}  Nf5 {[%clk 0:01:01]} 24. Qf2 {[%clk 0:00:32]}  b5 {[%clk 0:00:55]} 25. axb5 {[%clk 0:00:31]}  axb5 {[%clk 0:00:51]} 26. Ng5 {[%clk 0:00:25]}  Bxf3 {[%clk 0:00:49]} 27. Nxf3 {[%clk 0:00:26]}  Ra2 {[%clk 0:00:46]} 28. Nde1 {[%clk 0:00:18]}  Qc6 {[%clk 0:00:40]} 29. Rdb1 {[%clk 0:00:18]}  Ra5 {[%clk 0:00:30]} 30. Qe2 {[%clk 0:00:17]}  Re8 {[%clk 0:00:29]} 31. Qd3 {[%clk 0:00:12]}  Bc3 {[%clk 0:00:20]} 32. Rxb5 {[%clk 0:00:06]}  Rxb5 {[%clk 0:00:19]} 33. Rxb5 {[%clk 0:00:07]}  Bxe1 {[%clk 0:00:18]} 34. Ne5 {[%clk 0:00:08]}  Qd6 {[%clk 0:00:12]} 35. Rd5 {[%clk 0:00:05]}  Qe6 {[%clk 0:00:12]} 36. Ng4 {[%clk 0:00:03]}  h5 {[%clk 0:00:10]} 37. Re5 {[%clk 0:00:03]}  hxg4 {[%clk 0:00:08]} 38. Rxe6 {[%clk 0:00:04]}  Rxe6 {[%clk 0:00:09]} 39. Kg1 {[%clk 0:00:04]}  g3 {[%clk 0:00:08]} 40. hxg3 {[%clk 0:00:04]}  Bxg3 {[%clk 0:00:09]} 41. Qd1 {[%clk 0:00:01]} 0-1


[Site "https://www.chess.com"]

[Event "Titled Tuesday Blitz July 13 2021"]
[White "Dolzhykova, Kateryna"]
[Black "Tomb, Maroun"]
[WhiteFideId "14113414"]
[BlackFideId "5300398"]
[WhiteElo "2151"]
[BlackElo "2527"]
[Result "1/2-1/2"]
[Round "06"]
[TimeControl "180+1"]
[Date "2021.07.13"]
[WhiteClock "0:00:04"]
[BlackClock "0:00:12"]

1. e4 {[%clk 0:03:00]}  d6 {[%clk 0:02:54]} 2. d4 {[%clk 0:03:00]}  Nf6 {[%clk 0:02:53]} 3. Nc3 {[%clk 0:03:00]}  e5 {[%clk 0:02:53]} 4. dxe5 {[%clk 0:02:58]}  dxe5 {[%clk 0:02:52]} 5. Qxd8+ {[%clk 0:02:57]}  Kxd8 {[%clk 0:02:53]} 6. Bc4 {[%clk 0:02:54]}  Ke8 {[%clk 0:02:53]} 7. Bg5 {[%clk 0:02:52]}  Bd6 {[%clk 0:02:50]} 8. O-O-O {[%clk 0:02:50]}  Nbd7 {[%clk 0:02:47]} 9. f3 {[%clk 0:02:46]}  a6 {[%clk 0:02:43]} 10. Nge2 {[%clk 0:02:41]}  h6 {[%clk 0:02:37]} 11. Be3 {[%clk 0:02:38]}  Bc5 {[%clk 0:02:35]} 12. Bxc5 {[%clk 0:02:35]}  Nxc5 {[%clk 0:02:36]} 13. Nd5 {[%clk 0:02:34]}  Ne6 {[%clk 0:02:24]} 14. Nxf6+ {[%clk 0:02:30]}  gxf6 {[%clk 0:02:21]} 15. Bxe6 {[%clk 0:02:30]}  Bxe6 {[%clk 0:02:11]} 16. Ng3 {[%clk 0:02:21]}  h5 {[%clk 0:02:09]} 17. Rd2 {[%clk 0:02:18]}  h4 {[%clk 0:02:03]} 18. Nf1 {[%clk 0:02:16]}  Ke7 {[%clk 0:01:58]} 19. Ne3 {[%clk 0:02:14]}  c6 {[%clk 0:01:57]} 20. b3 {[%clk 0:02:05]}  Rad8 {[%clk 0:01:56]} 21. Rhd1 {[%clk 0:02:04]}  Rxd2 {[%clk 0:01:55]} 22. Rxd2 {[%clk 0:02:05]}  Rg8 {[%clk 0:01:51]} 23. Kb2 {[%clk 0:02:04]}  Rg5 {[%clk 0:01:50]} 24. Kc3 {[%clk 0:01:56]}  a5 {[%clk 0:01:44]} 25. a3 {[%clk 0:01:43]}  b6 {[%clk 0:01:43]} 26. b4 {[%clk 0:01:42]}  axb4+ {[%clk 0:01:43]} 27. axb4 {[%clk 0:01:42]}  b5 {[%clk 0:01:42]} 28. Rd1 {[%clk 0:01:35]}  Rg8 {[%clk 0:01:41]} 29. Ra1 {[%clk 0:01:34]}  Rd8 {[%clk 0:01:35]} 30. Ra7+ {[%clk 0:01:32]}  Rd7 {[%clk 0:01:35]} 31. Ra8 {[%clk 0:01:24]}  Rd8 {[%clk 0:01:35]} 32. Rxd8 {[%clk 0:01:23]}  Kxd8 {[%clk 0:01:35]} 33. Kd2 {[%clk 0:01:19]}  Ke7 {[%clk 0:01:34]} 34. c3 {[%clk 0:01:19]}  Kf8 {[%clk 0:01:32]} 35. Nd1 {[%clk 0:01:13]}  Kg7 {[%clk 0:01:27]} 36. Ke3 {[%clk 0:01:11]}  f5 {[%clk 0:01:24]} 37. Nb2 {[%clk 0:00:54]}  f4+ {[%clk 0:01:24]} 38. Kf2 {[%clk 0:00:53]}  f5 {[%clk 0:01:20]} 39. Nd3 {[%clk 0:00:50]}  Kf6 {[%clk 0:01:19]} 40. Nc5 {[%clk 0:00:49]}  fxe4 {[%clk 0:01:03]} 41. fxe4 {[%clk 0:00:48]}  Bc4 {[%clk 0:01:00]} 42. Nb7 {[%clk 0:00:43]}  Ke6 {[%clk 0:00:57]} 43. Na5 {[%clk 0:00:40]}  Bd3 {[%clk 0:00:53]} 44. Kf3 {[%clk 0:00:40]}  Kd6 {[%clk 0:00:51]} 45. Nb7+ {[%clk 0:00:39]}  Ke7 {[%clk 0:00:48]} 46. Nc5 {[%clk 0:00:39]}  Bc2 {[%clk 0:00:48]} 47. Kg4 {[%clk 0:00:39]}  Bd1+ {[%clk 0:00:35]} 48. Kxh4 {[%clk 0:00:39]}  Be2 {[%clk 0:00:34]} 49. g4 {[%clk 0:00:17]}  Bf3 {[%clk 0:00:19]} 50. Nd3 {[%clk 0:00:08]}  Kf6 {[%clk 0:00:17]} 51. Nf2 {[%clk 0:00:08]}  Kg6 {[%clk 0:00:16]} 52. Nd3 {[%clk 0:00:04]}  Kf6 {[%clk 0:00:15]} 53. Nf2 {[%clk 0:00:04]}  Kg6 {[%clk 0:00:15]} 54. Nd3 {[%clk 0:00:04]}  Kf6 {[%clk 0:00:12]} 1/2-1/2


[Site "https://www.chess.com"]

[Event "Titled Tuesday Blitz July 13 2021"]
[White "Wagner, Dinara"]
[Black "Damjanovic, Vladimir"]
[WhiteFideId "24157570"]
[BlackFideId "903795"]
[WhiteElo "2260"]
[BlackElo "2374"]
[Result "1-0"]
[Round "06"]
[TimeControl "180+1"]
[Date "2021.07.13"]
[WhiteClock "0:00:16"]
[BlackClock "0:00:14"]

1. d4 {[%clk 0:02:56]}  Nf6 {[%clk 0:02:59]} 2. c4 {[%clk 0:02:54]}  c5 {[%clk 0:03:00]} 3. d5 {[%clk 0:02:52]}  b5 {[%clk 0:03:00]} 4. cxb5 {[%clk 0:02:51]}  a6 {[%clk 0:03:00]} 5. bxa6 {[%clk 0:02:51]}  g6 {[%clk 0:03:01]} 6. Nf3 {[%clk 0:02:51]}  Bg7 {[%clk 0:03:01]} 7. Nc3 {[%clk 0:02:51]}  O-O {[%clk 0:03:02]} 8. g3 {[%clk 0:02:51]}  d6 {[%clk 0:03:02]} 9. Bg2 {[%clk 0:02:45]}  Nbd7 {[%clk 0:03:02]} 10. O-O {[%clk 0:02:45]}  Nb6 {[%clk 0:03:03]} 11. Rb1 {[%clk 0:01:57]}  Bf5 {[%clk 0:03:02]} 12. Ra1 {[%clk 0:01:53]}  Ne4 {[%clk 0:03:03]} 13. Nh4 {[%clk 0:01:33]}  Nxc3 {[%clk 0:03:00]} 14. bxc3 {[%clk 0:01:34]}  Bd7 {[%clk 0:02:39]} 15. Qc2 {[%clk 0:01:12]}  Rxa6 {[%clk 0:02:28]} 16. Bg5 {[%clk 0:01:12]}  h6 {[%clk 0:02:21]} 17. Bd2 {[%clk 0:01:11]}  Bb5 {[%clk 0:02:14]} 18. Rfe1 {[%clk 0:01:09]}  Bc4 {[%clk 0:02:14]} 19. a4 {[%clk 0:01:04]}  Qd7 {[%clk 0:02:09]} 20. a5 {[%clk 0:01:02]}  Rfa8 {[%clk 0:02:10]} 21. Nxg6 {[%clk 0:00:40]}  fxg6 {[%clk 0:02:08]} 22. Qxg6 {[%clk 0:00:41]}  Nxd5 {[%clk 0:01:30]} 23. Bxh6 {[%clk 0:00:35]}  e6 {[%clk 0:01:22]} 24. Ra4 {[%clk 0:00:34]}  Qf7 {[%clk 0:01:10]} 25. Qxf7+ {[%clk 0:00:33]}  Kxf7 {[%clk 0:01:11]} 26. Bxg7 {[%clk 0:00:33]}  Bb5 {[%clk 0:01:11]} 27. Rg4 {[%clk 0:00:33]}  Rg8 {[%clk 0:01:09]} 28. c4 {[%clk 0:00:32]}  Rxg7 {[%clk 0:01:01]} 29. Rxg7+ {[%clk 0:00:27]}  Kxg7 {[%clk 0:01:02]} 30. cxd5 {[%clk 0:00:23]}  e5 {[%clk 0:00:48]} 31. Ra1 {[%clk 0:00:21]}  Bxe2 {[%clk 0:00:47]} 32. Bf1 {[%clk 0:00:21]}  Bxf1 {[%clk 0:00:30]} 33. Kxf1 {[%clk 0:00:22]}  Kf6 {[%clk 0:00:28]} 34. Ke2 {[%clk 0:00:22]}  e4 {[%clk 0:00:28]} 35. h4 {[%clk 0:00:17]}  Kf5 {[%clk 0:00:11]} 36. Ke3 {[%clk 0:00:15]}  c4 {[%clk 0:00:11]} 37. Kd4 {[%clk 0:00:14]}  c3 {[%clk 0:00:11]} 38. Kxc3 {[%clk 0:00:14]}  Ke5 {[%clk 0:00:12]} 39. h5 {[%clk 0:00:14]}  Kxd5 {[%clk 0:00:13]} 40. h6 {[%clk 0:00:14]}  Ra8 {[%clk 0:00:13]} 41. a6 {[%clk 0:00:14]}  Kc5 {[%clk 0:00:14]} 42. a7 {[%clk 0:00:14]}  d5 {[%clk 0:00:14]} 43. Ra5+ {[%clk 0:00:13]}  Kb6 {[%clk 0:00:12]} 44. Rxd5 {[%clk 0:00:12]}  Rxa7 {[%clk 0:00:13]} 45. Rh5 {[%clk 0:00:12]}  Rh7 {[%clk 0:00:13]} 46. Kd4 {[%clk 0:00:13]}  Kc6 {[%clk 0:00:13]} 47. Kxe4 {[%clk 0:00:13]}  Kd6 {[%clk 0:00:14]} 48. f4 {[%clk 0:00:14]}  Ke6 {[%clk 0:00:14]} 49. g4 {[%clk 0:00:14]}  Kf6 {[%clk 0:00:15]} 50. g5+ {[%clk 0:00:14]}  Kg6 {[%clk 0:00:16]} 51. Rh1 {[%clk 0:00:14]}  Re7+ {[%clk 0:00:16]} 52. Kf3 {[%clk 0:00:15]}  Kh7 {[%clk 0:00:15]} 53. Kg4 {[%clk 0:00:15]}  Re4 {[%clk 0:00:15]} 54. Rb1 {[%clk 0:00:15]}  Re7 {[%clk 0:00:15]} 55. Rb6 {[%clk 0:00:15]}  Rc7 {[%clk 0:00:15]} 56. Kh5 {[%clk 0:00:15]}  Rd7 {[%clk 0:00:14]} 57. g6+ {[%clk 0:00:15]}  Kg8 {[%clk 0:00:13]} 58. Rb8+ {[%clk 0:00:16]}  Rd8 {[%clk 0:00:14]} 59. Rxd8# {[%clk 0:00:16]} 1-0


[Site "https://www.chess.com"]